[Event "1st Semana Santa Torrevieja 2022"]
[Site "Torrevieja Alicante"]
[Date "2022.04.15"]
[Round "4.13"]
[White "Aagaard, Jacob"]
[Black "Van Dael, Siem"]
[Result "1-0"]
[ECO "B53"]
[WhiteElo "2465"]
[BlackElo "2303"]
[Annotator "TA"]
[PlyCount "47"]
[EventDate "2022.04.12"]
[EventType "swiss"]
[EventCountry "ESP"]
[SourceTitle "playchess.com"]
[Source "ChessBase"]
[SourceQuality "1"]
[TimeControl "5400+30"]

{[%evp 23,47,20,35,29,103,47,98,68,76,81,90,46,51,68,579,575,1056,1034,1319,1271,29989,1067,1858,1745,29991,1960]} 1. e4 {[%emt 0:00:11] Kritz,Leonid} c5 {[%emt 0:00:57]} 2. Nf3 {[%emt 0:00:12]} d6 {[%emt 0:00:07]} 3. Nc3 {[%emt 0:00:10]} Nf6 {[%emt 0:00:46]} 4. d4 {[%emt 0:00:09]} cxd4 {[%emt 0:00:06]} 5. Qxd4 {[%emt 0:00:11]} Nc6 {[%emt 0:01:00]} 6. Bb5 {[%emt 0:00:09]} Bd7 {[%emt 0:00:09]} 7. Qd3 {[%emt 0:00:10]} a6 {[%emt 0:01:53]} 8. Bxc6 {[%emt 0:00:24]} Bxc6 {[%emt 0:00:08]} 9. Bg5 {[%emt 0:03:32]} e6 {[%emt 0:04:24]} 10. O-O-O {[%emt 0:02:14]} Be7 {[%emt 0:00:59]} 11. Nd4 {[%emt 0:00:25]} Qc7 {[%emt 0:04:39]} 12. f4 {[%emt 0:09:32]} O-O {[%emt 0:01:12]} 13. h4 {[%emt 0:08:51] [#] B53: Sicilian: 2...d6: Lines with Qxd4.} Bb5 $146 {[%emt 0:13:31]} (13... Rac8 $11) ({Predecessor:} 13... Rfd8 14. f5 e5 15. Bxf6 Bxf6 16. Nde2 Rac8 17. Rd2 Qa5 18. g4 b5 19. g5 Be7 {1-0 (61) Macieja,B (2592)-Vogt,L (2484) Germany 2006 CBM 112 [Kritz,Leonid]}) 14. Qf3 {[%emt 0:03:14]} (14. Ndxb5 $16 axb5 15. Nxb5 (15. Qxb5 Rfc8 $11)) 14... h5 {[%emt 0:05:36]} ({Black should try} 14... Rfc8 $14) 15. Bxf6 {[%emt 0:11:53] White is better.} ({Of course not} 15. Ndxb5 $6 axb5 16. Nxb5 Qa5 $11) 15... Bxf6 {[%emt 0:00:07]} 16. Qxh5 {[%emt 0:00:24]} ({Don't play} 16. Ncxb5 axb5 17. Qb3 b4 $11) 16... Bc4 {[%emt 0:02:30]} 17. Rh3 {[%emt 0:11:18] &Bianco is more active.} Rfd8 {[%emt 0:15:33]} 18. Rg3 {[%emt 0:11:42]} Qc5 $2 {[%emt 0:02:46][%mdl 8192] This move loses the game for Black.} (18... Rac8 $1 $14) 19. e5 $1 $18 {[%emt 0:02:37]} dxe5 {[%emt 0:11:09] [#]} 20. Ne4 $1 {[%emt 0:00:22][%csl LRc5,LRf6]} Qe7 {[%emt 0:01:17]} (20... Rxd4 21. Nxf6+) 21. fxe5 {[%emt 0:00:12]} Bxh4 {[%emt 0:00:49] [#]} 22. Rg4 {[%emt 0:00:10]} (22. Rh1 $142 $1 g6 (22... Be2 23. Nxe2) 23. Rxh4 Qxh4 24. Qxh4 Rxd4 25. Rh3 Kf8 {[#]} 26. Qf6 $1 Rd1+ 27. Kxd1) 22... f5 {[%emt 0:01:01]} 23. Rxh4 {[%emt 0:00:08]} fxe4 {[%emt 0:00:47]} 24. Qh7+ {[%emt 0:00:07] Weighted Error Value: White=0.18 (very precise) /Black=1.85} (24. Qh8+ $142 Kf7 25. Rf4+ Kg6 26. Rg4+ Qg5+ 27. Rxg5+ Kxg5 28. Qxg7+ Kf4 29. g3+ Ke3 30. Qh6+ Kf2 31. Qh2+ Ke3 32. Qg1#) 1-0

[Event "1st Semana Santa Torrevieja 2022"]
[Site "Torrevieja Alicante"]
[Date "2022.04.15"]
[Round "4.15"]
[White "Movsziszian, Karen"]
[Black "Prado Lobo, Jonas"]
[Result "1-0"]
[ECO "D02"]
[WhiteElo "2441"]
[BlackElo "2309"]
[Annotator "TA"]
[PlyCount "95"]
[EventDate "2022.04.12"]
[EventType "swiss"]
[EventCountry "ESP"]
[SourceTitle "playchess.com"]
[Source "ChessBase"]
[SourceQuality "1"]
[TimeControl "5400+30"]

{[%evp 10,95,25,24,26,20,39,20,47,29,41,18,26,0,28,25,17,18,22,4,3,0,3,2,30,21,16,6,31,0,54,54,72,72,167,169,214,168,196,187,194,192,510,520,516,510,514,514,580,453,452,452,448,446,445,444,443,436,495,495,507,491,517,437,512,512,1907,1905,1905,1650,1407,1181,6639,6415,29970,29971,29971,29972,29972,29973,29972,29974,29976,29977,29977,29978,29978,29977]} 1. g3 {[%emt 0:00:08]} d5 {[%emt 0:00:05]} 2. Nf3 {[%emt 0:00:07]} Nc6 {[%emt 0:00:07]} 3. d4 {[%emt 0:04:45]} Bf5 {[%emt 0:00:04]} 4. Bg2 {[%emt 0:00:04]} Nb4 {[%emt 0:00:04]} 5. Na3 {[%emt 0:00:04]} e6 {[%emt 0:00:03]} 6. O-O {[%emt 0:00:55]} Nc6 {[%emt 0:00:02] D02: 1 d4 d5 2 Nf3 sidelines, including 2...Nf6 3 g3 and 2...Nf6 3 Bf4.} 7. b3 {[%emt 0:00:40]} Nf6 {[%emt 0:00:55]} 8. Bb2 {[%emt 0:03:38]} Be7 {[%emt 0:01:54] The position is equal.} 9. c4 {[%emt 0:01:01]} (9. Nh4 $5 {[%cal Rh4f5]}) 9... O-O {[%emt 0:00:59] [#]} 10. Nb5 $146 {[%emt 0:08:48]} (10. Nh4 $5 {[%cal Rc4d5]}) ({Predecessor:} 10. Nc2 h6 11. Rc1 Be4 12. Ne3 a5 13. a3 Nb8 14. Bh3 c6 15. Ne5 Nbd7 16. Nd3 {1-0 (68) Rodshtein,M (2599)-Donchenko,A (2641) Chess.com INT 2021}) 10... Ne4 {[%emt 0:02:06]} 11. Rc1 {[%emt 0:06:33]} a6 {[%emt 0:11:14]} 12. Nc3 {[%emt 0:00:02]} Nxc3 {[%emt 0:01:57]} 13. Rxc3 {[%emt 0:00:02]} Be4 {[%emt 0:00:27]} 14. a3 {[%emt 0:09:27]} Bf6 {[%emt 0:02:18]} 15. Rc1 {[%emt 0:08:23]} dxc4 {[%emt 0:06:53]} 16. Rxc4 {[%emt 0:05:43]} Qd6 {[%emt 0:08:17]} 17. e3 {[%emt 0:01:33]} Rad8 {[%emt 0:04:22]} 18. Qe2 {[%emt 0:02:33]} Bd5 {[%emt 0:04:47]} 19. Rc5 {[%emt 0:12:21]} (19. Rcc1 $5 {[%cal Re3e4]}) 19... Bxb3 {[%emt 0:05:45]} (19... e5 $11) 20. Rfc1 $14 {[%emt 0:00:04]} Ba4 {[%emt 0:05:40]} 21. Qc4 {[%emt 0:00:07] Black is now going downhill.} b5 {[%emt 0:05:04] [#]} 22. Qc3 $1 $18 {[%emt 0:03:15]} Na7 {[%emt 0:12:20]} 23. Rxc7 {[%emt 0:03:33]} Rc8 {[%emt 0:01:18]} 24. Ne5 {[%emt 0:02:29]} (24. Rxc8 $6 Rxc8 25. Qxc8+ Nxc8 26. Rxc8+ Bd8 $16) 24... Bxe5 {[%emt 0:07:40]} 25. dxe5 {[%emt 0:00:02]} ({Don't take} 25. Rxc8 $6 Nxc8 26. Qxc8 (26. dxe5 Qd8 $16) 26... Bf6 $16) 25... Qxc7 {[%emt 0:00:15] [#]} (25... Qd8 {is a better chance.} 26. Bb7 Rxc7 27. Qxc7 b4) 26. Qxc7 {[%emt 0:00:17]} Rxc7 {[%emt 0:00:01]} 27. Rxc7 {[%emt 0:00:02]} Nc8 {[%emt 0:00:03]} 28. Bd4 {[%emt 0:00:23] Inhibits Nb6.} b4 {[%emt 0:01:53]} 29. Bb7 {[%emt 0:00:46]} bxa3 {[%emt 0:00:29]} 30. Rxc8 {[%emt 0:00:12]} ({Less strong is} 30. Bxc8 Bb5 31. Bb7 Rb8 $18) 30... Rxc8 {[%emt 0:00:06]} 31. Bxc8 {[%emt 0:00:02]} Bb5 {[%emt 0:00:07]} 32. f3 {[%emt 0:03:45]} a2 {[%emt 0:00:07]} 33. Kf2 {[%emt 0:00:04]} g5 {[%emt 0:00:20]} 34. Bb7 {[%emt 0:02:26]} Kf8 {[%emt 0:03:26]} 35. Ke1 {[%emt 0:00:16]} Ke7 {[%emt 0:00:26]} 36. Kd2 {[%emt 0:00:43]} Kd7 {[%emt 0:00:14]} 37. Kc2 {[%emt 0:01:36]} Bc6 {[%emt 0:00:18]} (37... Bc4 $142 38. f4 g4) 38. Bxc6+ {[%emt 0:03:26]} Kxc6 {[%emt 0:00:48][%mdl 4096] Endgame KB-KP} 39. e4 {[%emt 0:00:02]} Kb5 {[%emt 0:00:34]} 40. Kb3 {[%emt 0:00:39]} h6 {[%emt 0:03:04]} 41. h4 {[%emt 0:00:41]} gxh4 {[%emt 0:01:01]} 42. gxh4 {[%emt 0:00:01] White mates.} h5 {[%emt 0:00:01]} 43. Kxa2 {[%emt 0:20:22]} Kc4 {[%emt 0:00:04]} 44. Be3 {[%emt 0:00:00]} Kd3 {[%emt 0:00:08]} 45. Bg5 {[%emt 0:00:00]} Ke2 {[%emt 0:00:11]} 46. f4 {[%emt 0:00:00]} Kf3 {[%emt 0:00:08]} 47. Kb3 {[%emt 0:00:00]} Kxe4 {[%emt 0:00:11]} 48. Kb4 {[%emt 0:00:00] Weighted Error Value: White=0.15 (very precise) /Black=0.32} 1-0

[Event "1st Semana Santa Torrevieja 2022"]
[Site "Torrevieja Alicante"]
[Date "2022.04.15"]
[Round "4.16"]
[White "Cruz Lledo, Pablo"]
[Black "Villa Tornero, Alex"]
[Result "1-0"]
[ECO "E14"]
[WhiteElo "2430"]
[BlackElo "2054"]
[Annotator "TA"]
[PlyCount "159"]
[EventDate "2022.04.12"]
[EventType "swiss"]
[EventCountry "ESP"]
[SourceTitle "playchess.com"]
[Source "ChessBase"]
[SourceQuality "1"]
[TimeControl "5400+30"]

{[%evp 9,159,-6,16,-11,-11,-9,7,0,0,0,0,0,14,19,14,12,80,78,152,147,148,147,202,222,206,62,113,109,110,122,171,129,133,137,157,159,170,113,106,65,60,58,56,67,52,48,60,0,4,0,0,0,0,-19,0,0,0,0,0,-54,-65,-61,0,-12,0,0,0,0,65,61,137,65,250,249,264,258,257,258,324,310,410,401,354,38,50,55,68,68,70,0,0,0,0,0,0,0,0,0,0,0,33,0,0,0,0,0,0,0,0,0,-28000,-28000,-28000,-28000,-28000,-28000,-28000,-28000,-28000,-28000,27999,27999,27999,27999,27999,27999,27999,27999,27999,27999,27999,27998,27999,27996,27998,27997,27998,27997,27998,27998,27996,27996,27997,27993,27996,27994,27998,27995,27996,27996,27997,27996]} 1. d4 {[%emt 0:00:04]} d5 {[%emt 0:00:11]} 2. Nf3 {[%emt 0:00:09]} Nf6 {[%emt 0:00:18]} 3. e3 {[%emt 0:00:09]} e6 {[%emt 0:00:18]} 4. c4 {[%emt 0:00:12]} b6 {[%emt 0:00:14]} 5. a3 {[%emt 0:04:31]} Bb7 {[%emt 0:00:44]} 6. cxd5 {[%emt 0:00:16] E14: Queen's Indian: Classical Variation (4 e3).} exd5 {[%emt 0:00:32]} 7. b4 {[%emt 0:00:16] [#]} Ne4 $146 {[%emt 0:10:09]} ({Predecessor:} 7... Bd6 8. Bd3 Ne4 9. Nfd2 O-O 10. Bxe4 dxe4 11. Nc3 Re8 12. h3 Re6 13. Bb2 Nd7 {0-1 (29) Mostowik,D (1838)-Willmann,B (2052) LSS email 2013}) 8. Be2 {[%emt 0:01:40] The position is equal.} Bd6 {[%emt 0:00:28]} 9. O-O {[%emt 0:00:19]} Nd7 {[%emt 0:02:10]} 10. Bb2 {[%emt 0:00:08]} Qf6 {[%emt 0:09:44]} 11. Nc3 {[%emt 0:02:06]} Nxc3 {[%emt 0:01:07]} 12. Bxc3 {[%emt 0:00:10]} g5 {[%emt 0:00:54]} (12... Qe7 $11) 13. Rc1 {[%emt 0:06:24]} Qh6 {[%emt 0:05:25]} (13... O-O $142) 14. Ne5 $16 {[%emt 0:03:28]} O-O-O {[%emt 0:02:27]} 15. f4 {[%emt 0:01:31]} Rhf8 {[%emt 0:04:28]} (15... Qg7 $16 {was worth a try.}) 16. Qa4 $18 {[%emt 0:13:07]} gxf4 {[%emt 0:09:21]} 17. exf4 {[%emt 0:03:07]} ({White has to play} 17. Qxa7 $18 {aiming for Ba6.} Bxe5 18. dxe5) 17... Bxe5 {[%emt 0:27:10]} (17... f6 $14 18. Ng4 Qg6) 18. dxe5 $16 {[%emt 0:00:42]} Rg8 {[%emt 0:00:22][%cal Od5d4]} 19. Bd4 {[%emt 0:02:38]} Qg6 {[%emt 0:01:16]} (19... Kb8 $16) 20. Bf3 {[%emt 0:01:38]} Kb8 {[%emt 0:00:13]} 21. Qc2 {[%emt 0:01:31]} Qxc2 {[%emt 0:05:29]} 22. Rxc2 {[%emt 0:00:02]} Ba6 {[%emt 0:00:05][%cal Bb7a6,Ba6d3,Bd3f5,Bf5g4][%mdl 32]} 23. Re1 {[%emt 0:01:43]} (23. Bxd5 Bxf1 24. Bxf7 (24. Kxf1 Nf8 $17) 24... Rg4 $1 $17) (23. Rfc1 $18) 23... Nf8 {[%emt 0:01:09][%cal Bd7f8,Bf8e6,Be6g5,Bg5e4][%mdl 32]} 24. Bf2 {[%emt 0:03:54] Strongly threatening Rd2. 0x0.001c68f4b568dp-1022s more active pieces. The black rooks are badly placed.} Ne6 {[%emt 0:00:48]} 25. f5 {[%emt 0:00:26]} Ng5 {[%emt 0:00:32]} 26. Bg4 {[%emt 0:05:34]} h5 {[%emt 0:01:15]} 27. Bxh5 {[%emt 0:00:08]} Bd3 {[%emt 0:00:10][%csl LRc2,LRf5]} 28. Rb2 {[%emt 0:03:48]} (28. Rd2 $14 Bxf5 29. Be3) 28... Bxf5 $11 {[%emt 0:00:43]} 29. h4 {[%emt 0:00:50]} Rh8 {[%emt 0:02:30]} 30. Bd1 {[%emt 0:04:15]} Ne4 {[%emt 0:01:08]} 31. h5 {[%emt 0:00:16]} Rdg8 {[%emt 0:02:56]} 32. Be3 $1 {[%emt 0:03:37]} Bg4 {[%emt 0:01:17] Threatens to win with ...Bxd1.} 33. h6 {[%emt 0:00:36]} Be6 {[%emt 0:02:38]} 34. Bb3 {[%emt 0:07:40]} (34. Rf1 $11) 34... Ng5 $15 {[%emt 0:02:00]} 35. Rd1 {[%emt 0:00:55]} Nf3+ {[%emt 0:00:57]} ({Black should try} 35... Rxh6 $15 36. Bxd5 Rh5) 36. Kf1 {[%emt 0:00:42]} (36. Kf2 $5 {[%cal Rg2f3]} Nxe5 37. Bf4 $11 (37. Bxd5 Ng4+ 38. Kf3 Nxe3 $17)) 36... Nxe5 {[%emt 0:01:11]} 37. Bf4 $1 {[%emt 0:06:45]} ({Much worse is} 37. Bxd5 Bxd5 38. Rxd5 Nc4 $17) 37... Ng6 {[%emt 0:01:57]} 38. Bg5 {[%emt 0:00:16] This bishop pair is nice.} f6 {[%emt 0:00:37]} ({Black should play} 38... Ne5 $11 39. Bf4 (39. Bf6 Nc4 $11) 39... Nc4) 39. Bc1 $1 $14 {[%emt 0:00:17]} f5 {[%emt 0:05:07]} (39... Ne5 $14) 40. Bxd5 {[%emt 0:01:28]} ({Better is} 40. Re2 $16 Bf7 41. Rf2 (41. Bxd5 Rd8 $16)) 40... Bxd5 {[%emt 0:00:00]} (40... Rd8 $1 $14 41. Rbd2 Bc8) 41. Rxd5 $18 {[%emt 0:00:08]} f4 {[%emt 0:00:00]} 42. Rh5 {[%emt 0:00:16]} Rh7 {[%emt 0:00:00]} 43. Re2 {[%emt 0:00:32]} Rgh8 {[%emt 0:00:00]} 44. Re6 {[%emt 0:02:02]} Rxh6 {[%emt 0:00:00]} 45. Rxh6 {[%emt 0:00:02]} Rxh6 {[%emt 0:00:00][%mdl 4096] Endgame KRB-KRN} 46. Kf2 $2 {[%emt 0:01:21]} (46. Kg1 $18) 46... Rh1 $14 {[%emt 0:00:00]} 47. Bd2 {[%emt 0:00:12]} Nh4 {[%emt 0:01:31]} (47... Rd1 $2 48. Ke2 Rxd2+ 49. Kxd2 $18) 48. Bxf4 {[%emt 0:00:06]} Ra1 $1 {[%emt 0:01:10]} 49. g4 {[%emt 0:00:55]} (49. g3 $1 $14 Ra2+ 50. Re2 Rxe2+ 51. Kxe2) 49... Rxa3 $11 {[%emt 0:00:24]} 50. Be3 {[%emt 0:00:07]} a5 {[%emt 0:00:52]} 51. bxa5 {[%emt 0:02:59]} Rxa5 {[%emt 0:00:39]} 52. Bf4 {[%emt 0:02:25]} Ra3 {[%emt 0:00:39] Hoping for ...Rf3+.} 53. Rxb6+ {[%emt 0:00:42]} Kc8 {[%emt 0:00:30]} 54. Rf6 {[%emt 0:00:02] And now Bg5 would win.} Kd7 {[%emt 0:00:33]} 55. Be3 {[%emt 0:02:47]} Ra5 {[%emt 0:01:03]} 56. Kg3 {[%emt 0:03:18]} Ra3 {[%emt 0:00:14]} 57. Kf2 {[%emt 0:01:09]} Ra2+ {[%emt 0:00:15]} 58. Kg3 {[%emt 0:00:42]} Ra3 {[%emt 0:00:02]} 59. Kxh4 $2 {[%emt 0:00:06][%mdl 8192]} (59. Rf7+ $11 Ke6 60. Rxc7) 59... Rxe3 {[%emt 0:00:01] KR-KR} 60. g5 {[%emt 0:00:16]} Re6 $4 {[%emt 0:00:58][%mdl 8192]} (60... Ke7 61. Rf5 Ke6) 61. Rf1 {[%emt 0:00:21]} Ke7 $4 {[%emt 0:01:18][%mdl 8192]} (61... c5 62. Rf3 Re1) 62. Kh5 {[%emt 0:00:06]} Re2 {[%emt 0:00:38]} 63. g6 {[%emt 0:00:41]} Rg2 $4 {[%emt 0:00:30][%mdl 8192]} (63... Rh2+ 64. Kg5 c5) 64. Rf7+ {[%emt 0:02:06]} Ke8 $4 {[%emt 0:00:16][%mdl 8192] [#]} (64... Kd6 65. Rf6+ Ke7) 65. Kh6 $1 {[%emt 0:00:07] White mates.} ({Inferior is} 65. Rxc7 Kf8 $11) 65... c5 {[%emt 0:00:17]} 66. Rc7 {[%emt 0:03:19]} Rh2+ {[%emt 0:00:59] [#]} 67. Kg7 $1 {[%emt 0:00:08]} Rh5 {[%emt 0:00:39]} 68. Kf6 {[%emt 0:00:13]} Rh1 {[%emt 0:00:31]} 69. Rc8+ {[%emt 0:01:43]} Kd7 {[%emt 0:00:02]} 70. Rxc5 {[%emt 0:00:05]} Rf1+ {[%emt 0:00:26]} 71. Kg7 {[%emt 0:00:08]} Ke7 {[%emt 0:00:27]} 72. Re5+ {[%emt 0:00:13]} Kd7 {[%emt 0:00:10]} 73. Kh7 {[%emt 0:00:38]} Rh1+ {[%emt 0:00:10]} 74. Kg8 {[%emt 0:00:04]} Rg1 {[%emt 0:00:28]} 75. g7 {[%emt 0:00:06]} Kd6 {[%emt 0:00:17]} 76. Re8 {[%emt 0:00:06]} Kd7 {[%emt 0:00:07]} 77. Re4 {[%emt 0:00:11]} Rf1 {[%emt 0:00:39]} 78. Kh7 {[%emt 0:00:24]} Rh1+ {[%emt 0:00:05]} 79. Kg6 {[%emt 0:00:01]} Rg1+ {[%emt 0:00:38]} 80. Kf6 {[%emt 0:00:06] Both players deserved the win here.  Weighted Error Value: White=0.23 (precise) /Black=0.22 (precise)} 1-0

[Event "1st Semana Santa Torrevieja 2022"]
[Site "Torrevieja Alicante"]
[Date "2022.04.15"]
[Round "5.1"]
[White "Aagaard, Jacob"]
[Black "Moussard, Jules"]
[Result "0-1"]
[ECO "E11"]
[WhiteElo "2465"]
[BlackElo "2630"]
[Annotator "TA"]
[PlyCount "104"]
[EventDate "2022.04.12"]
[EventType "swiss"]
[EventCountry "ESP"]
[SourceTitle "playchess.com"]
[Source "ChessBase"]
[SourceQuality "1"]
[TimeControl "5400+30"]

{[%evp 18,103,14,8,0,9,18,16,20,12,20,16,26,11,27,-2,-4,-32,-38,-38,-37,-33,-32,-45,-45,-43,-37,-32,-36,-32,-31,-30,-12,-26,-7,-30,-6,-41,0,-16,0,0,33,-25,-25,-22,-21,-25,-11,-10,-25,-17,0,-96,-99,-209,-218,-259,-232,-253,-260,-241,-226,-222,-218,-190,-187,-171,-173,-445,-447,-418,-438,-873,-434,-1429,-1325,-29986,-29987,-29994,-29986,-29992,-29993,-29997,-29998,-29998,-29999,-29999]} 1. d4 {[%emt 0:00:03]} Nf6 {[%emt 0:04:16]} 2. c4 {[%emt 0:00:14]} e6 {[%emt 0:00:14]} 3. g3 {[%emt 0:00:22]} d5 {[%emt 0:02:02]} 4. Nf3 {[%emt 0:00:11]} Bb4+ {[%emt 0:01:36]} 5. Bd2 {[%emt 0:01:10]} Be7 {[%emt 0:00:05]} 6. Bg2 {[%emt 0:00:16]} O-O {[%emt 0:00:07]} 7. O-O {[%emt 0:00:13]} c6 {[%emt 0:00:06]} 8. Qc2 {[%emt 0:02:02]} Nbd7 {[%emt 0:00:20] Nowadays more popular than 8...b6.} 9. Rd1 {[%emt 0:00:49]} b6 {[%emt 0:00:42]} 10. b3 {[%emt 0:00:30]} a5 {[%emt 0:04:56] E11: Bogo-Indian.} 11. Bc3 {[%emt 0:02:09]} Ne4 {[%emt 0:07:02]} 12. Ne5 {[%emt 0:01:04]} Nxe5 {[%emt 0:01:10] The position is equal.} 13. Bxe4 {[%emt 0:00:24]} f5 {[%emt 0:00:56]} 14. Bg2 {[%emt 0:00:09]} Nf7 {[%emt 0:05:10]} 15. Nd2 {[%emt 0:16:08]} Ba6 {[%emt 0:01:49] [#]} 16. Qb2 $146 {[%emt 0:07:21]} ({Predecessor:} 16. e3 Qd7 17. a4 Rac8 18. Qb2 Qa7 19. b4 axb4 20. Bxb4 c5 21. Bc3 dxc4 22. dxc5 Rxc5 23. Bxg7 {1-0 (90) Mesaros,F (2373)-Martinovic,S (2550) Germany 2017}) 16... b5 {[%emt 0:03:39]} 17. cxb5 {[%emt 0:04:20]} cxb5 {[%emt 0:03:49] White must now prevent ...b4.} 18. b4 {[%emt 0:03:18]} a4 {[%emt 0:01:17]} 19. Nf3 {[%emt 0:05:53]} Rc8 {[%emt 0:03:16]} 20. Ne1 {[%emt 0:02:45]} Nd6 {[%emt 0:03:25]} 21. Nd3 {[%emt 0:00:58]} Rc7 {[%emt 0:04:41]} 22. e3 {[%emt 0:06:58]} g5 {[%emt 0:03:29]} 23. Nc5 {[%emt 0:03:00]} Bc8 {[%emt 0:00:24]} 24. Qe2 {[%emt 0:00:12]} g4 {[%emt 0:06:04]} 25. h3 {[%emt 0:04:42]} gxh3 {[%emt 0:04:04]} 26. Bxh3 {[%emt 0:00:42]} (26. Bf3 {seems wilder.} Nc4 27. Kh2 Bd6 28. Rac1) 26... Qe8 {[%emt 0:00:40]} 27. Rac1 {[%emt 0:06:11]} (27. Kh2 {feels hotter.} Ne4 28. Rac1 Bd6 29. Rh1) 27... Bd8 {[%emt 0:05:40]} 28. Kg2 {[%emt 0:05:42]} Rg7 {[%emt 0:01:13]} 29. Rh1 {[%emt 0:03:09]} Ne4 {[%emt 0:02:15]} 30. Nxe4 {[%emt 0:03:42]} (30. Kf1 $14) 30... fxe4 $11 {[%emt 0:00:43]} 31. Bg4 {[%emt 0:01:15] Inhibits h5.} Bd7 {[%emt 0:10:33]} 32. Rh2 {[%emt 0:01:13]} Qg6 {[%emt 0:00:56]} 33. Bh5 {[%emt 0:01:18]} Qf5 {[%emt 0:00:43]} 34. Rg1 {[%emt 0:04:04]} Be7 {[%emt 0:00:52]} 35. Kf1 {[%emt 0:01:30]} (35. Rc1 $11) 35... Rc8 $36 {[%emt 0:00:50][%mdl 2048] Black is in control. &Nero is more active. Black converts the advantage convincingly.} 36. Qd2 {[%emt 0:00:13]} (36. Qe1 $17 {is a better defense.}) 36... a3 {[%emt 0:01:41]} 37. Kg2 {[%emt 0:04:05]} Be8 {[%emt 0:02:19]} 38. Be2 {[%emt 0:00:06]} Bd6 {[%emt 0:02:12]} ({Inferior is} 38... Rf7 39. Bh5 $17) 39. Rc1 {[%emt 0:00:09] [#]} Rgc7 $1 {[%emt 0:06:15]} (39... Rf7 40. Qe1 $17) 40. Rhh1 {[%emt 0:01:16]} Qf8 {[%emt 0:00:04]} ({And not} 40... Rf7 41. Bh5 Rf8 42. Bd1 $17) 41. Bg4 {[%emt 0:01:13]} Qe7 {[%emt 0:00:43]} 42. Rc2 {[%emt 0:01:14]} Kg7 {[%emt 0:01:46][%cal Oc7c3]} 43. Rb1 $2 {[%emt 0:00:19]} (43. Rhc1 {might work better.}) 43... h5 $19 {[%emt 0:00:34][%cal Bh7h5,Bh5h4][%mdl 32]} 44. Bd1 {[%emt 0:01:01]} h4 {[%emt 0:00:22]} 45. Rb3 {[%emt 0:00:39]} (45. g4 $142 h3+ 46. Kg1) 45... Qg5 {[%emt 0:00:45]} (45... hxg3 $142 46. Qe2 Bg6 47. fxg3 Qf6 48. Rxa3 Qf3+ 49. Qxf3 exf3+ 50. Kxf3 Bxc2 51. Bxc2 Rxc3 52. Ra7+ Kf6) 46. g4 {[%emt 0:03:27]} (46. Qe2 $142 hxg3 47. Qg4) 46... Bh5 {[%emt 0:00:19]} 47. Kh3 {[%emt 0:00:11] [#]} Rf7 $1 {[%emt 0:00:38] Black mates.} 48. Qe1 {[%emt 0:00:01]} (48. Qe2 Rf3+) 48... Rcf8 {[%emt 0:00:46][%cal Bc8f8,Bf8h8,Bh8h4][%mdl 32]} 49. f4 {[%emt 0:00:11] [#]} exf3 $1 {[%emt 0:00:04][%csl Gg5][%cal Rh5g4]} 50. Qxh4 {[%emt 0:00:05] [#]} (50. Qg1 Bg3) 50... Bxg4+ $1 {[%emt 0:00:19][%mdl 512]} 51. Qxg4 {[%emt 0:00:07]} Rh8+ {[%emt 0:00:04]} 52. Qh4 {[%emt 0:00:04]} Rxh4# {[%emt 0:00:37] Weighted Error Value: White=0.51/Black=0.14 (very precise)} 0-1